[Event "Icelandic Open 2019"]
[Site "Akureyri"]
[Date "2019.05.29"]
[Round "6.15"]
[White "Johannsdottir, Johanna Bjorg"]
[Black "Petursson, Gudni"]
[Result "0-1"]
[ECO "B10"]
[WhiteElo "1908"]
[BlackElo "2045"]
[Annotator "NA"]
[PlyCount "106"]
[EventDate "2019.05.25"]
[EventType "swiss"]
[EventCountry "ISL"]
[SourceTitle "playchess.com"]
[Source "ChessBase"]
[SourceQuality "1"]
[TimeControl "40/5400+30:1800+30"]

1. e4 {[%emt 0:00:00]} c6 {[%emt 0:00:00]} 2. d3 {[%emt 0:00:00]} d5 {[%emt 0:00:00]} 3. Nd2 {[%emt 0:00:00]} g6 {[%emt 0:00:37]} 4. Ngf3 {[%emt 0:00:00]} Bg7 {[%emt 0:00:13]} 5. g3 {[%emt 0:00:04]} Bg4 {[%emt 0:02:12]} 6. Bg2 {[%emt 0:00:24]} e6 {[%emt 0:00:11]} 7. O-O {[%emt 0:00:26]} Nf6 {[%emt 0:00:48]} 8. Re1 {[%emt 0:01:22]} O-O {[%emt 0:00:09]} 9. e5 {[%emt 0:00:35]} Nfd7 {[%emt 0:00:07]} 10. h3 {[%emt 0:00:10]} Bxf3 {[%emt 0:00:08]} 11. Nxf3 {[%emt 0:00:05]} c5 {[%emt 0:00:33]} 12. c3 {[%emt 0:01:01]} Nc6 {[%emt 0:00:07]} 13. Bf4 {[%emt 0:00:13]} Qb6 {[%emt 0:02:20]} 14. Qd2 {[%emt 0:02:13]} a5 {[%emt 0:02:07]} 15. Bh6 {[%emt 0:02:47]} a4 {[%emt 0:00:24]} 16. h4 {[%emt 0:01:23]} Qc7 {[%emt 0:00:55]} 17. Qg5 {[%emt 0:05:03]} Qd8 {[%emt 0:00:39]} 18. Qf4 {[%emt 0:01:21]} Qe7 {[%emt 0:03:27]} 19. Bxg7 {[%emt 0:10:31]} Kxg7 {[%emt 0:00:06]} 20. h5 {[%emt 0:00:08]} h6 {[%emt 0:01:41]} 21. Qg4 {[%emt 0:02:30]} g5 {[%emt 0:00:14]} 22. a3 {[%emt 0:00:15]} b5 {[%emt 0:02:27]} 23. d4 {[%emt 0:00:17]} cxd4 {[%emt 0:01:24]} 24. cxd4 {[%emt 0:00:06]} Na5 {[%emt 0:00:41]} 25. Rac1 {[%emt 0:02:42]} Rfc8 {[%emt 0:00:06]} 26. Bf1 {[%emt 0:02:55]} Nc4 {[%emt 0:00:15]} 27. Rb1 {[%emt 0:01:57]} Rc6 {[%emt 0:01:21]} 28. Bd3 {[%emt 0:00:13]} f5 {[%emt 0:02:23]} 29. Qh3 {[%emt 0:04:38]} g4 {[%emt 0:00:57]} 30. Qh4 {[%emt 0:00:04]} Qxh4 {[%emt 0:00:18]} 31. Nxh4 {[%emt 0:00:07]} Ndb6 {[%emt 0:01:30]} 32. Red1 {[%emt 0:02:14]} Kf7 {[%emt 0:02:08]} 33. Ng6 {[%emt 0:00:53]} Rb8 {[%emt 0:00:20]} 34. Kg2 {[%emt 0:00:44]} Nd7 {[%emt 0:00:17]} 35. Rdc1 {[%emt 0:02:15]} Rbb6 {[%emt 0:01:20]} 36. Rc3 {[%emt 0:01:30]} Nb8 {[%emt 0:02:21]} 37. Nf4 {[%emt 0:04:57]} b4 {[%emt 0:02:06]} 38. axb4 {[%emt 0:00:37]} Rxb4 {[%emt 0:00:05]} 39. Rbc1 {[%emt 0:08:55]} Na5 {[%emt 0:03:45]} 40. Rxc6 {[%emt 0:00:00]} Naxc6 {[%emt 0:00:00]} 41. Ra1 {[%emt 0:15:15]} Nxd4 {[%emt 0:01:25]} 42. Ng6 {[%emt 0:00:57]} Nbc6 {[%emt 0:00:54]} 43. Ra2 {[%emt 0:04:41]} Nf3 {[%emt 0:00:42]} 44. Kf1 {[%emt 0:01:35]} Nfxe5 {[%emt 0:01:26]} 45. Nxe5+ {[%emt 0:00:19]} Nxe5 {[%emt 0:00:06]} 46. Bc2 {[%emt 0:00:05]} Nc4 {[%emt 0:00:25]} 47. Bxa4 {[%emt 0:00:58]} Rxb2 {[%emt 0:00:35]} 48. Ra1 {[%emt 0:00:10]} Kf6 {[%emt 0:00:19]} 49. Be8 {[%emt 0:00:10]} Nd2+ {[%emt 0:00:28]} 50. Kg2 {[%emt 0:00:44]} Rb1 {[%emt 0:00:27]} 51. Ra7 {[%emt 0:00:25]} Nf3 {[%emt 0:00:18]} 52. Rf7+ {[%emt 0:00:30]} Ke5 {[%emt 0:00:08]} 53. Rxf5+ {[%emt 0:00:58]} exf5 {[%emt 0:00:08]} 0-1

[Event "Icelandic Open 2019"]
[Site "Akureyri"]
[Date "2019.05.30"]
[Round "7.4"]
[White "Thorhallsson, Throstur"]
[Black "Kjartansson, Gudmundur"]
[Result "0-1"]
[ECO "E01"]
[WhiteElo "2435"]
[BlackElo "2454"]
[Annotator "ChessBase"]
[PlyCount "68"]
[EventDate "2019.05.25"]
[EventType "swiss"]
[EventCountry "ISL"]
[SourceTitle "playchess.com"]
[Source "ChessBase"]
[SourceQuality "1"]
[TimeControl "40/5400+30:1800+30"]

1. d4 {[%emt 0:00:00]} d5 {[%emt 0:01:02]} 2. c4 {[%emt 0:01:38]} e6 {[%emt 0:00:04]} 3. Nc3 {[%emt 0:00:35]} c6 {[%emt 0:00:40]} 4. Nf3 {[%emt 0:01:49]} dxc4 {[%emt 0:00:19]} 5. a4 {[%emt 0:01:41]} Bb4 {[%emt 0:00:09]} 6. g3 {[%emt 0:02:50]} Nf6 {[%emt 0:01:09]} 7. Bg2 {[%emt 0:01:22]} O-O {[%emt 0:00:06]} 8. O-O {[%emt 0:00:43]} Nbd7 {[%emt 0:13:52]} 9. Qc2 {[%emt 0:03:57]} a5 {[%emt 0:08:17]} 10. Rd1 {[%emt 0:06:50]} Qe7 {[%emt 0:09:31]} 11. Ne5 {[%emt 0:19:31]} Nxe5 {[%emt 0:05:05]} 12. dxe5 {[%emt 0:00:49]} Nd7 {[%emt 0:12:19]} 13. Bf4 {[%emt 0:04:44]} f5 {[%emt 0:01:30]} 14. exf6 {[%emt 0:03:22]} Nxf6 {[%emt 0:00:45]} 15. Ne4 {[%emt 0:12:51]} e5 {[%emt 0:03:05]} 16. Bd2 {[%emt 0:08:27]} Be6 {[%emt 0:02:54]} 17. Ng5 {[%emt 0:02:14]} Rad8 {[%emt 0:04:21]} 18. Rac1 {[%emt 0:11:29]} Bd5 {[%emt 0:13:16]} 19. Bxb4 {[%emt 0:01:18]} Qxb4 {[%emt 0:08:12]} 20. Bh3 {[%emt 0:04:07]} Rfe8 {[%emt 0:06:04]} 21. Ne6 {[%emt 0:07:01]} Rd6 {[%emt 0:01:00]} 22. Ng5 {[%emt 0:01:30]} h6 {[%emt 0:01:05]} 23. Nf3 {[%emt 0:00:28]} Be4 {[%emt 0:01:42]} 24. Qc3 {[%emt 0:00:02]} Qxc3 {[%emt 0:00:36]} 25. bxc3 {[%emt 0:00:01]} Rxd1+ {[%emt 0:01:03]} 26. Rxd1 {[%emt 0:00:01]} Nd5 {[%emt 0:01:24]} 27. Rc1 {[%emt 0:00:34]} Bxf3 {[%emt 0:00:30]} 28. exf3 {[%emt 0:00:01]} Kf7 {[%emt 0:00:47]} 29. Rb1 {[%emt 0:01:16]} Rb8 {[%emt 0:00:47]} 30. Bf1 {[%emt 0:00:23]} Nxc3 {[%emt 0:00:24]} 31. Bxc4+ {[%emt 0:00:10]} Kf6 {[%emt 0:00:14]} 32. Ra1 {[%emt 0:00:17]} b5 {[%emt 0:01:11]} 33. axb5 {[%emt 0:00:15]} cxb5 {[%emt 0:00:05]} 34. Bd3 {[%emt 0:00:16]} a4 {[%emt 0:00:37]} 0-1

[Event "Icelandic Open 2019"]
[Site "Akureyri"]
[Date "2019.05.30"]
[Round "7.5"]
[White "Ruelland, Geoffrey"]
[Black "Gunnarsson, Jon Viktor"]
[Result "0-1"]
[ECO "B92"]
[WhiteElo "1955"]
[BlackElo "2452"]
[Annotator "ChessBase"]
[PlyCount "48"]
[EventDate "2019.05.25"]
[EventType "swiss"]
[EventCountry "ISL"]
[SourceTitle "playchess.com"]
[Source "ChessBase"]
[SourceQuality "1"]
[TimeControl "40/5400+30:1800+30"]

1. e4 {[%emt 0:00:00]} c5 {[%emt 0:01:36]} 2. Nf3 {[%emt 0:00:11]} d6 {[%emt 0:01:00]} 3. d4 {[%emt 0:00:30]} cxd4 {[%emt 0:00:05]} 4. Nxd4 {[%emt 0:00:18]} Nf6 {[%emt 0:00:09]} 5. Nc3 {[%emt 0:00:36]} a6 {[%emt 0:00:08]} 6. Be2 {[%emt 0:01:57]} e5 {[%emt 0:00:40]} 7. Nb3 {[%emt 0:00:12]} Be7 {[%emt 0:00:10]} 8. Be3 {[%emt 0:01:34]} O-O {[%emt 0:01:20]} 9. g4 {[%emt 0:02:07]} Be6 {[%emt 0:05:59]} 10. g5 {[%emt 0:01:11]} Nfd7 {[%emt 0:00:08]} 11. Qd2 {[%emt 0:00:17]} Nb6 {[%emt 0:08:38]} 12. O-O-O {[%emt 0:05:03]} a5 {[%emt 0:09:15]} 13. Kb1 {[%emt 0:22:45]} a4 {[%emt 0:21:10]} 14. Nc1 {[%emt 0:00:13]} a3 {[%emt 0:05:51]} 15. b3 {[%emt 0:00:13]} N8d7 {[%emt 0:01:20]} 16. Rhg1 {[%emt 0:08:11]} Qc7 {[%emt 0:03:42]} 17. Nb5 {[%emt 0:08:51]} Qc6 {[%emt 0:02:34]} 18. f3 {[%emt 0:12:44]} d5 {[%emt 0:01:30]} 19. Bxb6 {[%emt 0:24:44]} Nxb6 {[%emt 0:01:56]} 20. Qc3 {[%emt 0:00:11]} Rfc8 {[%emt 0:04:34]} 21. Qxc6 {[%emt 0:00:31]} bxc6 {[%emt 0:00:21]} 22. exd5 {[%emt 0:00:31]} Nxd5 {[%emt 0:02:02]} 23. c4 {[%emt 0:00:43]} Ne3 {[%emt 0:00:39]} 24. Rd3 {[%emt 0:03:47]} cxb5 {[%emt 0:02:23]} 0-1

[Event "Icelandic Open 2019"]
[Site "Akureyri"]
[Date "2019.05.30"]
[Round "7.7"]
[White "Thorfinnsson, Bragi"]
[Black "Pupols, Viktors"]
[Result "1-0"]
[ECO "C00"]
[WhiteElo "2451"]
[BlackElo "2023"]
[Annotator "ChessBase"]
[PlyCount "65"]
[EventDate "2019.05.25"]
[EventType "swiss"]
[EventCountry "ISL"]
[SourceTitle "playchess.com"]
[Source "ChessBase"]
[SourceQuality "1"]
[TimeControl "40/5400+30:1800+30"]

1. Nf3 {[%emt 0:00:00]} d5 {[%emt 0:00:00]} 2. g3 {[%emt 0:00:30]} Nf6 {[%emt 0:00:10]} 3. Bg2 {[%emt 0:00:27]} e6 {[%emt 0:00:20]} 4. O-O {[%emt 0:00:56]} c5 {[%emt 0:00:04]} 5. d3 {[%emt 0:01:20]} Nc6 {[%emt 0:00:05]} 6. Nbd2 {[%emt 0:00:52]} Be7 {[%emt 0:00:05]} 7. e4 {[%emt 0:01:05]} O-O {[%emt 0:00:07]} 8. Re1 {[%emt 0:00:52]} b5 {[%emt 0:00:04]} 9. e5 {[%emt 0:02:30]} Ne8 {[%emt 0:00:05]} 10. Nf1 {[%emt 0:00:44]} Nc7 {[%emt 0:00:05]} 11. h4 {[%emt 0:00:44]} b4 {[%emt 0:00:04]} 12. h5 {[%emt 0:02:45]} Nb5 {[%emt 0:00:08]} 13. N1h2 {[%emt 0:03:37]} Ncd4 {[%emt 0:00:04]} 14. Ng4 {[%emt 0:01:13]} a5 {[%emt 0:02:06]} 15. a4 {[%emt 0:07:16]} bxa3 {[%emt 0:00:06]} 16. bxa3 {[%emt 0:00:09]} a4 {[%emt 0:01:16]} 17. h6 {[%emt 0:11:57]} g6 {[%emt 0:00:07]} 18. Be3 {[%emt 0:00:39]} Bd7 {[%emt 0:20:46]} 19. c4 {[%emt 0:05:18]} Nxf3+ {[%emt 0:14:33]} 20. Qxf3 {[%emt 0:01:27]} Nc7 {[%emt 0:00:25]} 21. Bxc5 {[%emt 0:05:16]} Bxc5 {[%emt 0:28:07]} 22. Nf6+ {[%emt 0:00:46]} Kh8 {[%emt 0:00:04]} 23. Nxd7 {[%emt 0:00:27]} Be7 {[%emt 0:00:03]} 24. Nxf8 {[%emt 0:02:30]} Qxf8 {[%emt 0:02:29]} 25. Qf4 {[%emt 0:05:53]} g5 {[%emt 0:02:43]} 26. Qg4 {[%emt 0:01:06]} Rd8 {[%emt 0:07:25]} 27. cxd5 {[%emt 0:02:16]} Nxd5 {[%emt 0:00:48]} 28. Bxd5 {[%emt 0:00:30]} Rxd5 {[%emt 0:00:16]} 29. Qxa4 {[%emt 0:00:23]} Bd8 {[%emt 0:04:36]} 30. Rab1 {[%emt 0:02:15]} Qxh6 {[%emt 0:00:10]} 31. Qe8+ {[%emt 0:01:37]} Kg7 {[%emt 0:00:03]} 32. Rb8 {[%emt 0:00:47]} g4 {[%emt 0:00:29]} 33. Rxd8 {[%emt 0:00:24]} 1-0

[Event "Icelandic Open 2019"]
[Site "Akureyri"]
[Date "2019.05.30"]
[Round "7.9"]
[White "Petursson, Gudni"]
[Black "Sarkar, Justin"]
[Result "0-1"]
[ECO "A38"]
[WhiteElo "2045"]
[BlackElo "2358"]
[Annotator "ChessBase"]
[PlyCount "120"]
[EventDate "2019.05.25"]
[EventType "swiss"]
[EventCountry "ISL"]
[SourceTitle "playchess.com"]
[Source "ChessBase"]
[SourceQuality "1"]
[TimeControl "40/5400+30:1800+30"]

1. c4 {[%emt 0:00:00]} c5 {[%emt 0:01:15]} 2. Nc3 {[%emt 0:00:00]} Nc6 {[%emt 0:00:17]} 3. g3 {[%emt 0:00:02]} g6 {[%emt 0:00:50]} 4. Bg2 {[%emt 0:00:07]} Bg7 {[%emt 0:00:09]} 5. Nf3 {[%emt 0:00:33]} Nf6 {[%emt 0:00:15]} 6. O-O {[%emt 0:00:06]} h5 {[%emt 0:02:06]} 7. d4 {[%emt 0:02:15]} cxd4 {[%emt 0:00:26]} 8. Nxd4 {[%emt 0:00:05]} h4 {[%emt 0:00:21]} 9. e3 {[%emt 0:04:16]} hxg3 {[%emt 0:08:48]} 10. hxg3 {[%emt 0:00:08]} Qa5 {[%emt 0:00:36]} 11. Nb3 {[%emt 0:02:44]} Qb4 {[%emt 0:10:48]} 12. Nd5 {[%emt 0:02:06]} Nxd5 {[%emt 0:00:41]} 13. cxd5 {[%emt 0:00:02]} Ne5 {[%emt 0:00:36]} 14. Bd2 {[%emt 0:00:44]} Qb6 {[%emt 0:04:04]} 15. Bc3 {[%emt 0:00:13]} g5 {[%emt 0:00:25]} 16. d6 {[%emt 0:02:35]} g4 {[%emt 0:00:37]} 17. Nd4 {[%emt 0:06:41]} Qxd6 {[%emt 0:05:53]} 18. Nf5 {[%emt 0:00:22]} Qg6 {[%emt 0:00:13]} 19. Nxg7+ {[%emt 0:00:15]} Qxg7 {[%emt 0:00:02]} 20. Bxe5 {[%emt 0:01:27]} Qxe5 {[%emt 0:00:04]} 21. Qxg4 {[%emt 0:05:41]} d5 {[%emt 0:05:30]} 22. Qf3 {[%emt 0:00:00]} Be6 {[%emt 0:02:17]} 23. b3 {[%emt 0:00:00]} O-O-O {[%emt 0:02:26]} 24. Rac1+ {[%emt 0:00:00]} Kb8 {[%emt 0:00:08]} 25. Qf4 {[%emt 0:00:52]} Qxf4 {[%emt 0:00:20]} 26. exf4 {[%emt 0:00:06]} Bh3 {[%emt 0:00:39]} 27. Bxh3 {[%emt 0:00:34]} Rxh3 {[%emt 0:00:03]} 28. Kg2 {[%emt 0:00:08]} Rh6 {[%emt 0:00:45]} 29. Kf3 {[%emt 0:00:15]} Rc6 {[%emt 0:04:40]} 30. Ke3 {[%emt 0:01:04]} Kc7 {[%emt 0:03:34]} 31. Rh1 {[%emt 0:01:28]} Kd6 {[%emt 0:02:51]} 32. Rh6+ {[%emt 0:01:57]} f6 {[%emt 0:02:31]} 33. Rxc6+ {[%emt 0:00:33]} bxc6 {[%emt 0:00:07]} 34. g4 {[%emt 0:00:17]} c5 {[%emt 0:00:32]} 35. g5 {[%emt 0:00:09]} Ke6 {[%emt 0:00:25]} 36. gxf6 {[%emt 0:02:44]} exf6 {[%emt 0:00:10]} 37. Rh1 {[%emt 0:00:36]} a5 {[%emt 0:01:32]} 38. Rh7 {[%emt 0:01:31]} a4 {[%emt 0:05:54]} 39. Rb7 {[%emt 0:00:28]} Rh8 {[%emt 0:09:47]} 40. Rb6+ {[%emt 0:00:00]} Kf5 {[%emt 0:00:00]} 41. Rb5 {[%emt 0:03:37]} Rh3+ {[%emt 0:07:00]} 42. Ke2 {[%emt 0:00:54]} Rc3 {[%emt 0:13:51]} 43. Kd2 {[%emt 0:00:41]} d4 {[%emt 0:00:14]} 44. b4 {[%emt 0:00:32]} Ke4 {[%emt 0:02:46]} 45. bxc5 {[%emt 0:00:44]} Rf3 {[%emt 0:04:32]} 46. Ke2 {[%emt 0:00:12]} Ra3 {[%emt 0:01:03]} 47. Rb2 {[%emt 0:01:00]} Kd5 {[%emt 0:00:04]} 48. Rb6 {[%emt 0:02:21]} Rxa2+ {[%emt 0:02:59]} 49. Kf3 {[%emt 0:00:18]} Kxc5 {[%emt 0:11:11]} 50. Rxf6 {[%emt 0:00:09]} a3 {[%emt 0:00:13]} 51. Ra6 {[%emt 0:00:14]} Ra1 {[%emt 0:01:10]} 52. f5 {[%emt 0:00:08]} d3 {[%emt 0:00:08]} 53. Ke3 {[%emt 0:00:30]} a2 {[%emt 0:00:12]} 54. f6 {[%emt 0:00:43]} Re1+ {[%emt 0:00:19]} 55. Kxd3 {[%emt 0:01:25]} a1=Q {[%emt 0:00:09]} 56. Rxa1 {[%emt 0:00:06]} Rxa1 {[%emt 0:00:03]} 57. Ke4 {[%emt 0:00:08]} Kd6 {[%emt 0:00:07]} 58. Kf5 {[%emt 0:00:05]} Ra5+ {[%emt 0:00:26]} 59. Kg6 {[%emt 0:00:19]} Ke6 {[%emt 0:00:05]} 60. f7 {[%emt 0:00:27]} Rf5 {[%emt 0:00:11]} 0-1

[Event "Icelandic Open 2019"]
[Site "Akureyri"]
[Date "2019.05.30"]
[Round "7.10"]
[White "Ptacnikova, Lenka"]
[Black "Jonsson, Gauti Pall"]
[Result "*"]
[ECO "B40"]
[WhiteElo "2145"]
[BlackElo "2033"]
[Annotator "RC"]
[PlyCount "245"]
[EventDate "2019.05.25"]
[EventType "swiss"]
[EventCountry "ISL"]
[SourceTitle "playchess.com"]
[Source "ChessBase"]
[SourceQuality "1"]
[TimeControl "40/5400+30:1800+30"]

1. e4 {[%emt 0:00:00]} c5 {[%emt 0:00:00]} 2. Nc3 {[%emt 0:00:00]} a6 {[%emt 0:01:02]} 3. g3 {[%emt 0:04:12]} b5 {[%emt 0:03:48]} 4. Bg2 {[%emt 0:01:00]} Bb7 {[%emt 0:00:57]} 5. d3 {[%emt 0:00:45]} e6 {[%emt 0:01:31]} 6. Nf3 {[%emt 0:07:40]} Nc6 {[%emt 0:03:00]} 7. O-O {[%emt 0:01:39]} d6 {[%emt 0:02:54]} 8. Re1 {[%emt 0:16:44]} Be7 {[%emt 0:09:25]} 9. d4 {[%emt 0:04:38]} cxd4 {[%emt 0:02:47]} 10. Nxd4 {[%emt 0:02:51]} Qc7 {[%emt 0:01:26]} 11. Nxc6 {[%emt 0:15:31]} Bxc6 {[%emt 0:01:14]} 12. Ne2 {[%emt 0:09:35]} Nf6 {[%emt 0:02:42]} 13. Nd4 {[%emt 0:00:48]} Bb7 {[%emt 0:01:31]} 14. c3 {[%emt 0:00:38]} O-O {[%emt 0:01:45]} 15. a4 {[%emt 0:00:20]} bxa4 {[%emt 0:01:29]} 16. Qxa4 {[%emt 0:02:00]} Nd7 {[%emt 0:02:55]} 17. Nb3 {[%emt 0:14:47]} Ne5 {[%emt 0:02:46]} 18. Na5 {[%emt 0:06:08]} Bc8 {[%emt 0:01:35]} 19. Rd1 {[%emt 0:00:54]} Bd7 {[%emt 0:00:46]} 20. Qc2 {[%emt 0:03:02]} Bb5 {[%emt 0:01:01]} 21. b3 {[%emt 0:01:12]} Rac8 {[%emt 0:00:47]} 22. c4 {[%emt 0:00:20]} Rfd8 {[%emt 0:01:51]} 23. Qe2 {[%emt 0:01:39]} Be8 {[%emt 0:00:45]} 24. Bb2 {[%emt 0:00:33]} Rb8 {[%emt 0:01:28]} 25. Bc3 {[%emt 0:04:00]} Nd7 {[%emt 0:01:01]} 26. Qg4 {[%emt 0:01:20]} Ne5 {[%emt 0:02:33]} 27. Qe2 {[%emt 0:00:05]} Nd7 {[%emt 0:00:59]} 28. Qg4 {[%emt 0:00:12]} Bf6 {[%emt 0:03:36]} 29. Bxf6 {[%emt 0:00:07]} Nxf6 {[%emt 0:00:15]} 30. Qe2 {[%emt 0:00:29]} Qb6 {[%emt 0:04:01]} 31. e5 {[%emt 0:01:08]} dxe5 {[%emt 0:00:43]} 32. Re1 {[%emt 0:00:20]} e4 {[%emt 0:01:30]} 33. Bxe4 {[%emt 0:00:53]} Rd4 {[%emt 0:00:28]} 34. Bf3 {[%emt 0:00:44]} Qb4 {[%emt 0:00:53]} 35. Qe3 {[%emt 0:00:41]} Rbd8 {[%emt 0:00:34]} 36. Reb1 {[%emt 0:00:14]} Rd3 {[%emt 0:01:23]} 37. Qe2 {[%emt 0:00:06]} Rd2 {[%emt 0:01:01]} 38. Qe1 {[%emt 0:00:12]} Qc3 {[%emt 0:00:30]} 39. Be2 {[%emt 0:01:21]} Qe5 {[%emt 0:03:36]} 40. Bf3 {[%emt 0:00:00]} Qf5 {[%emt 0:00:00]} 41. Rd1 {[%emt 0:07:20]} Rxd1 {[%emt 0:06:05]} 42. Rxd1 {[%emt 0:04:43]} Rxd1 {[%emt 0:01:38]} 43. Bxd1 {[%emt 0:00:08]} h5 {[%emt 0:00:33]} 44. Be2 {[%emt 0:07:59]} h4 {[%emt 0:00:48]} 45. Bf1 {[%emt 0:00:50]} hxg3 {[%emt 0:02:04]} 46. hxg3 {[%emt 0:00:12]} e5 {[%emt 0:03:49]} 47. c5 {[%emt 0:01:20]} e4 {[%emt 0:00:27]} 48. b4 {[%emt 0:00:29]} Nd5 {[%emt 0:01:58]} 49. Nc4 {[%emt 0:00:47]} Bc6 {[%emt 0:03:08]} 50. Nd6 {[%emt 0:00:45]} Qe5 {[%emt 0:00:50]} 51. Bxa6 {[%emt 0:02:20]} e3 {[%emt 0:01:13]} 52. Bc4 {[%emt 0:04:43]} exf2+ {[%emt 0:01:08]} 53. Qxf2 {[%emt 0:00:24]} Qa1+ {[%emt 0:04:49]} 54. Bf1 {[%emt 0:00:52]} Nxb4 {[%emt 0:12:17]} 55. Qxf7+ {[%emt 0:00:23]} Kh7 {[%emt 0:01:05]} 56. Qh5+ {[%emt 0:00:23]} Kg8 {[%emt 0:00:05]} 57. Qf7+ {[%emt 0:00:04]} Kh7 {[%emt 0:00:04]} 58. Qf5+ {[%emt 0:01:52]} Kg8 {[%emt 0:00:43]} 59. Qe6+ {[%emt 0:04:09]} Kh7 {[%emt 0:01:02]} 60. Qh3+ {[%emt 0:00:38]} Kg8 {[%emt 0:00:13]} 61. Qc8+ {[%emt 0:00:08]} Kh7 {[%emt 0:00:08]} 62. Qf5+ {[%emt 0:00:25]} Kg8 {[%emt 0:00:07]} 63. Nc8 {[%emt 0:01:05]} Qd4+ {[%emt 0:01:01]} 64. Qf2 {[%emt 0:00:10]} Qxf2+ {[%emt 0:00:56]} 65. Kxf2 {[%emt 0:00:05]} Kf7 {[%emt 0:00:55]} 66. Na7 {[%emt 0:00:34]} Ke6 {[%emt 0:03:04]} 67. Nxc6 {[%emt 0:00:37]} Nxc6 {[%emt 0:00:06]} 68. Bg2 {[%emt 0:00:20]} Nb4 {[%emt 0:00:51]} 69. Ke3 {[%emt 0:00:30]} Ke5 {[%emt 0:01:16]} 70. Bb7 {[%emt 0:00:28]} Nc2+ {[%emt 0:02:43]} 71. Kd3 {[%emt 0:00:47]} Nd4 {[%emt 0:00:46]} 72. c6 {[%emt 0:00:52]} Ne6 {[%emt 0:00:16]} 73. Bc8 {[%emt 0:00:33]} Nc7 {[%emt 0:00:24]} 74. Kc4 {[%emt 0:00:16]} Nd5 {[%emt 0:00:17]} 75. Kc5 {[%emt 0:00:18]} Nc7 {[%emt 0:00:32]} 76. Bh3 {[%emt 0:00:26]} Nd5 {[%emt 0:00:14]} 77. Bf1 {[%emt 0:00:25]} Nc7 {[%emt 0:00:23]} 78. Bc4 {[%emt 0:00:06]} Ne8 {[%emt 0:00:28]} 79. Bg8 {[%emt 0:00:25]} Nc7 {[%emt 0:00:43]} 80. Bf7 {[%emt 0:00:07]} Na8 {[%emt 0:00:32]} 81. Be8 {[%emt 0:00:44]} Nc7 {[%emt 0:00:15]} 82. Bd7 {[%emt 0:00:07]} Nd5 {[%emt 0:00:42]} 83. Bh3 {[%emt 0:00:35]} Nc7 {[%emt 0:00:16]} 84. Kb6 {[%emt 0:00:15]} Kd6 {[%emt 0:00:10]} 85. Kb7 {[%emt 0:00:06]} Nd5 {[%emt 0:00:45]} 86. Bg2 {[%emt 0:00:37]} Nc7 {[%emt 0:00:15]} 87. Bf1 {[%emt 0:02:20]} Ne6 {[%emt 0:00:38]} 88. Kb6 {[%emt 0:00:14]} Nc7 {[%emt 0:00:25]} 89. Bc4 {[%emt 0:00:13]} Ne8 {[%emt 0:00:31]} 90. Bf7 {[%emt 0:00:19]} Nc7 {[%emt 0:00:12]} 91. Bh5 {[%emt 0:01:11]} Ne6 {[%emt 0:00:36]} 92. Bf3 {[%emt 0:00:14]} Nc7 {[%emt 0:00:17]} 93. Bg4 {[%emt 0:00:52]} Ne8 {[%emt 0:00:35]} 94. Bd7 {[%emt 0:00:14]} Nc7 {[%emt 0:00:25]} 95. Kb7 {[%emt 0:00:12]} Nd5 {[%emt 0:02:23]} 96. g4 {[%emt 0:00:35]} g5 {[%emt 0:01:36]} 97. Bf5 {[%emt 0:01:01]} Nc7 {[%emt 0:00:13]} 98. Be4 {[%emt 0:00:31]} Nb5 {[%emt 0:00:31]} 99. Bg2 {[%emt 0:00:37]} Nc7 {[%emt 0:00:09]} 100. Bf1 {[%emt 0:00:25]} Nd5 {[%emt 0:00:46]} 101. Bc4 {[%emt 0:00:43]} Nc7 {[%emt 0:00:00]} 102. Bf7 {[%emt 0:00:35]} Nb5 {[%emt 0:00:00]} 103. Be8 {[%emt 0:00:11]} Nc7 {[%emt 0:00:10]} 104. Bd7 {[%emt 0:00:04]} Nd5 {[%emt 0:00:44]} 105. Kc8 {[%emt 0:00:14]} Nc7 {[%emt 0:00:40]} 106. Kd8 {[%emt 0:00:08]} Nd5 {[%emt 0:00:47]} 107. Ke8 {[%emt 0:00:15]} Nc7+ {[%emt 0:01:42]} 108. Kf7 {[%emt 0:00:10]} Ke5 {[%emt 0:04:10]} 109. Kg6 {[%emt 0:00:17]} Kf4 {[%emt 0:00:29]} 110. Bf5 {[%emt 0:01:50]} Nd5 {[%emt 0:00:26]} 111. Kf7 {[%emt 0:00:33]} Ke5 {[%emt 0:00:14]} 112. Bc8 {[%emt 0:00:35]} Nb6 {[%emt 0:01:29]} 113. Bd7 {[%emt 0:00:36]} Nd5 {[%emt 0:00:22]} 114. Be6 {[%emt 0:00:56]} Nc7 {[%emt 0:00:23]} 115. Bc4 {[%emt 0:00:25]} Kd6 {[%emt 0:03:51]} 116. Kf6 {[%emt 0:00:06]} Kxc6 {[%emt 0:00:05]} 117. Kxg5 {[%emt 0:00:03]} Kd7 {[%emt 0:00:26]} 118. Kh6 {[%emt 0:00:31]} Ke7 {[%emt 0:00:41]} 119. g5 {[%emt 0:00:18]} Ne8 {[%emt 0:00:19]} 120. Kh7 {[%emt 0:01:09]} Kf8 {[%emt 0:00:57]} 121. g6 {[%emt 0:00:30]} Ng7 {[%emt 0:00:23]} 122. Be2 {[%emt 0:00:23]} Nf5 {[%emt 0:01:50]} 123. Bg4 {[%emt 0:00:23]} *